Department Family,Entity,Date Paid,Expense Type,Expense Area,Supplier,Transaction Number,Amount (�),Supplier VAT Registration Number
BEIS,Met Office,2022-10-05,11 SERVICES,TECHNOLOGY AND CIO,AMAZON WEB SERVICES INC.,10779,831.56,N/A
BEIS,Met Office,2022-10-05,11 SERVICES,TECHNOLOGY AND CIO,AMAZON WEB SERVICES INC.,10780,21861.34,N/A
BEIS,Met Office,2022-10-05,11 SERVICES,TECHNOLOGY AND CIO,AMAZON WEB SERVICES INC.,10781,237877.83,N/A
BEIS,Met Office,2022-10-05,11 SERVICES,PROGRAMMES,UCAR INCOMING PAYMENTS,10791,11568.81,-
BEIS,Met Office,2022-10-05,STOCK,SERVICES,COMMUNICATIONS & POWER IND. EUROPE LTD,10792,0,664103850
BEIS,Met Office,2022-10-05,TRADE CREDITORS,SERVICES,COMMUNICATIONS & POWER IND. EUROPE LTD,10792,37124.25,664103850
BEIS,Met Office,2022-10-05,STOCK,SERVICES,COMMUNICATIONS & POWER IND. EUROPE LTD,10810,0,664103850
BEIS,Met Office,2022-10-05,TRADE CREDITORS,SERVICES,COMMUNICATIONS & POWER IND. EUROPE LTD,10810,4773.07,664103850
BEIS,Met Office,2022-10-05,11 SERVICES,MARKETS,"INTELLOVATIONS, LLC",10813,4811.78,-
BEIS,Met Office,2022-10-05,11 SERVICES,MARKETS,"INTELLOVATIONS, LLC",10814,1935.52,-
BEIS,Met Office,2022-10-12,12 INTERNATIONAL,MARKETS,REDACTED PERSONAL DATA,10815,3150.84,-
BEIS,Met Office,2022-10-21,13 MISCELLANEOUS,MARKETS,REDACTED PERSONAL DATA,10824,5799.59,-
BEIS,Met Office,2022-10-19,11 SERVICES,MARKETS,CONSULTEC,23955,4058.07,400005915
BEIS,Met Office,2022-10-19,11 SERVICES,MARKETS,CONSULTEC,23955,637.27,400005915
BEIS,Met Office,2022-10-05,11 SERVICES,SERVICES,COLLECTE LOCALISATION SATELLITES (C.L.S.),24158,5211.24,FR95338034390
BEIS,Met Office,2022-10-05,13 MISCELLANEOUS,SERVICES,COLLECTE LOCALISATION SATELLITES (C.L.S.),24159,259.82,FR95338034390
BEIS,Met Office,2022-10-05,11 SERVICES,SERVICES,COLLECTE LOCALISATION SATELLITES (C.L.S.),24160,9370.95,FR95338034390
BEIS,Met Office,2022-10-05,STOCK,SERVICES,VAISALA LTD,24161,0,336100011
BEIS,Met Office,2022-10-05,TRADE CREDITORS,SERVICES,VAISALA LTD,24161,65978.52,336100011
BEIS,Met Office,2022-10-12,STOCK,SERVICES,VAISALA LTD,24162,0,336100011
BEIS,Met Office,2022-10-12,STOCK,SERVICES,VAISALA LTD,24162,0,336100011
BEIS,Met Office,2022-10-12,TRADE CREDITORS,SERVICES,VAISALA LTD,24162,3862.44,336100011
BEIS,Met Office,2022-10-12,TRADE CREDITORS,SERVICES,VAISALA LTD,24162,1438.61,336100011
BEIS,Met Office,2022-10-05,11 SERVICES,SCIENCE,Knmi,24163,8718.83,821693992B01
BEIS,Met Office,2022-10-12,11 SERVICES,MARKETS,ECOMET,24165,206937.55,EXEMPT
BEIS,Met Office,2022-10-26,PAYE AND VAT,TECHNOLOGY AND CIO,EUMETNET - EIG,24167,10201.03,-
BEIS,Met Office,2022-10-05,08 SOFTWARE LICENCES,TECHNOLOGY AND CIO,LINBIT HA-SOLUTIONS GMBH,24168,3470.09,ATU64320988
BEIS,Met Office,2022-10-19,11 SERVICES,MARKETS,NORWEGIAN METEOROLOGICAL INST,24174,30235.84,NO971274042MVA
BEIS,Met Office,2022-10-19,10 EQUIPMENT MAINTENANCE,SERVICES,RAYMETRICS S.A. (GREEK ACCOUNT),24177,2190.13,EL999641589
BEIS,Met Office,2022-10-26,10 EQUIPMENT MAINTENANCE,SERVICES,RAYMETRICS S.A. (GREEK ACCOUNT),24178,657.04,EL999641589
BEIS,Met Office,2022-10-19,12 INTERNATIONAL,SERVICES,Unesco,24179,8760.53,-
BEIS,Met Office,2022-10-26,07 EQUIPMENT,SCIENCE,GRANDO S.A.,24180,74.46,BE0403066771
BEIS,Met Office,2022-10-26,07 EQUIPMENT,SCIENCE,GRANDO S.A.,24180,560.33,BE0403066771
BEIS,Met Office,2022-10-26,13 MISCELLANEOUS,CHIEF FINANCIAL OFFICER,DEMSTAR BUSINESS SOLUTIONS LTD,24184,94.49,10156145J
BEIS,Met Office,2022-10-26,11 SERVICES,MARKETS,ECMWF,24225,10420.12,NOTVATREG
BEIS,Met Office,2022-10-26,11 SERVICES,MARKETS,ECMWF,24226,2199.45,NOTVATREG
BEIS,Met Office,2022-10-26,11 SERVICES,MARKETS,ECMWF,24227,4454.67,NOTVATREG
BEIS,Met Office,2022-10-26,11 SERVICES,MARKETS,ECMWF,24228,30924.23,NOTVATREG
BEIS,Met Office,2022-10-26,11 SERVICES,MARKETS,ECMWF,24230,30924.23,NOTVATREG
BEIS,Met Office,2022-10-26,11 SERVICES,MARKETS,ECMWF,24231,1212.76,NOTVATREG
BEIS,Met Office,2022-10-26,11 SERVICES,MARKETS,ECMWF,24233,9699.36,NOTVATREG
BEIS,Met Office,2022-10-26,11 SERVICES,MARKETS,ECMWF,24234,30924.23,NOTVATREG
BEIS,Met Office,2022-10-26,11 SERVICES,MARKETS,ECMWF,24236,1312.07,NOTVATREG
BEIS,Met Office,2022-10-26,11 SERVICES,MARKETS,ECMWF,24237,1044.74,NOTVATREG
BEIS,Met Office,2022-10-26,11 SERVICES,MARKETS,ECMWF,24239,8476.67,NOTVATREG
BEIS,Met Office,2022-10-26,11 SERVICES,MARKETS,ECMWF,24240,30924.23,NOTVATREG
BEIS,Met Office,2022-10-26,11 SERVICES,MARKETS,ECMWF,24241,29252.65,NOTVATREG
BEIS,Met Office,2022-10-26,11 SERVICES,MARKETS,ECMWF,24242,1542.55,NOTVATREG
BEIS,Met Office,2022-10-26,11 SERVICES,MARKETS,ECMWF,24243,1044.74,NOTVATREG
BEIS,Met Office,2022-10-12,07 EQUIPMENT,SCIENCE,RADIOMETER PHYSICS GMBH,24244,105.92,DE123377395
BEIS,Met Office,2022-10-12,07 EQUIPMENT,SCIENCE,RADIOMETER PHYSICS GMBH,24244,526.27,DE123377395
BEIS,Met Office,2022-10-19,10 EQUIPMENT MAINTENANCE,SERVICES,DEUTSCHE WINDGUARD WIND TUNNEL SERVICES GMBH,24245,2383.11,DE225152482
BEIS,Met Office,2022-10-19,10 EQUIPMENT MAINTENANCE,SERVICES,DEUTSCHE WINDGUARD WIND TUNNEL SERVICES GMBH,24245,44.13,DE225152482
BEIS,Met Office,2022-10-19,10 EQUIPMENT MAINTENANCE,SERVICES,DEUTSCHE WINDGUARD WIND TUNNEL SERVICES GMBH,24245,8.83,DE225152482
BEIS,Met Office,2022-10-19,10 EQUIPMENT MAINTENANCE,SERVICES,DEUTSCHE WINDGUARD WIND TUNNEL SERVICES GMBH,24245,44.13,DE225152482
BEIS,Met Office,2022-10-19,06 ACCOMMODATION,CHIEF FINANCIAL OFFICER,REDACTED PERSONAL DATA,443875,100,NOTVATREGD
BEIS,Met Office,2022-10-07,06 ACCOMMODATION,CHIEF FINANCIAL OFFICER,REDACTED PERSONAL DATA,451668,2700,-
BEIS,Met Office,2022-10-27,06 ACCOMMODATION,CHIEF FINANCIAL OFFICER,GOVERNMENT PROPERTY AGENCY,451968,45000,888 8508 47
BEIS,Met Office,2022-10-27,06 ACCOMMODATION,CHIEF FINANCIAL OFFICER,GOVERNMENT PROPERTY AGENCY,454058,51.89,888 8508 47
BEIS,Met Office,2022-10-27,06 ACCOMMODATION,CHIEF FINANCIAL OFFICER,GOVERNMENT PROPERTY AGENCY,454243,90.41,888 8508 47
BEIS,Met Office,2022-10-27,06 ACCOMMODATION,CHIEF FINANCIAL OFFICER,GOVERNMENT PROPERTY AGENCY,454244,202.55,888 8508 47
BEIS,Met Office,2022-10-27,06 ACCOMMODATION,CHIEF FINANCIAL OFFICER,GOVERNMENT PROPERTY AGENCY,454247,0.69,888 8508 47
BEIS,Met Office,2022-10-13,06 ACCOMMODATION,CHIEF FINANCIAL OFFICER,GOVERNMENT PROPERTY AGENCY,454365,12880,888 8508 47
BEIS,Met Office,2022-10-27,06 ACCOMMODATION,CHIEF FINANCIAL OFFICER,GOVERNMENT PROPERTY AGENCY,455215,174.78,888 8508 47
BEIS,Met Office,2022-10-27,06 ACCOMMODATION,CHIEF FINANCIAL OFFICER,GOVERNMENT PROPERTY AGENCY,455216,1157.93,888 8508 47
BEIS,Met Office,2022-10-27,06 ACCOMMODATION,CHIEF FINANCIAL OFFICER,GOVERNMENT PROPERTY AGENCY,455668,113.43,888 8508 47
BEIS,Met Office,2022-10-19,06 ACCOMMODATION,CHIEF FINANCIAL OFFICER,REDACTED PERSONAL DATA,456454,100,NOTVATREGD
BEIS,Met Office,2022-10-10,06 ACCOMMODATION,CHIEF FINANCIAL OFFICER,OCS Group UK Ltd,460959,50.99,238034379
BEIS,Met Office,2022-10-27,06 ACCOMMODATION,CHIEF FINANCIAL OFFICER,GOVERNMENT PROPERTY AGENCY,463441,-15997,888 8508 47
BEIS,Met Office,2022-10-27,06 ACCOMMODATION,CHIEF FINANCIAL OFFICER,GOVERNMENT PROPERTY AGENCY,463455,-4357,888 8508 47
BEIS,Met Office,2022-10-24,06 ACCOMMODATION,CHIEF FINANCIAL OFFICER,Exeter City Council,465751,140288,142335594
BEIS,Met Office,2022-10-13,06 ACCOMMODATION,CHIEF FINANCIAL OFFICER,GOVERNMENT PROPERTY AGENCY,466587,3567.47,888 8508 47
BEIS,Met Office,2022-10-27,06 ACCOMMODATION,CHIEF FINANCIAL OFFICER,GOVERNMENT PROPERTY AGENCY,466588,8360.34,888 8508 47
BEIS,Met Office,2022-10-27,06 ACCOMMODATION,CHIEF FINANCIAL OFFICER,GOVERNMENT PROPERTY AGENCY,466589,12.3,888 8508 47
BEIS,Met Office,2022-10-13,06 ACCOMMODATION,CHIEF FINANCIAL OFFICER,British Gas Trading Ltd,467363,345.7,684966762
BEIS,Met Office,2022-10-10,11 SERVICES,PROGRAMMES,ALTO AEROSPACE LIMITED,467751,8808.58,275002528
BEIS,Met Office,2022-10-10,11 SERVICES,PROGRAMMES,ALTO AEROSPACE LIMITED,468179,-8808.58,275002528
BEIS,Met Office,2022-10-10,06 ACCOMMODATION,CHIEF FINANCIAL OFFICER,OCS Group UK Ltd,468197,-50.99,238034379
BEIS,Met Office,2022-10-13,06 ACCOMMODATION,CHIEF FINANCIAL OFFICER,GOVERNMENT PROPERTY AGENCY,469014,-12880,888 8508 47
BEIS,Met Office,2022-10-03,11 SERVICES,MARKETS,NCC SERVICES  LIMITED,469023,1590,732334556
BEIS,Met Office,2022-10-25,11 SERVICES,TECHNOLOGY AND CIO,BAE SYSTEMS APPLIED INTELLIGENCE LIMITED,469926,6221.46,GB641407169
BEIS,Met Office,2022-10-27,06 ACCOMMODATION,CHIEF FINANCIAL OFFICER,GOVERNMENT PROPERTY AGENCY,469976,7.34,888 8508 47
BEIS,Met Office,2022-10-11,11 SERVICES,OFFICE OF THE CEO,VALERIE WARK ASSOCIATES LIMITED,470271,500,727398007
BEIS,Met Office,2022-10-10,11 SERVICES,PROGRAMMES,University Of Oxford,470277,24826.42,125506730
BEIS,Met Office,2022-10-26,11 SERVICES,CHIEF FINANCIAL OFFICER,LICENCE BUREAU LTD,470645,5096.9,820219467
BEIS,Met Office,2022-10-27,06 ACCOMMODATION,CHIEF FINANCIAL OFFICER,GOVERNMENT PROPERTY AGENCY,470867,5759.81,888 8508 47
BEIS,Met Office,2022-10-27,06 ACCOMMODATION,CHIEF FINANCIAL OFFICER,GOVERNMENT PROPERTY AGENCY,470872,11519.62,888 8508 47
BEIS,Met Office,2022-10-05,11 SERVICES,TECHNOLOGY AND CIO,BAE SYSTEMS APPLIED INTELLIGENCE LIMITED,470961,7920,GB641407169
BEIS,Met Office,2022-10-05,11 SERVICES,TECHNOLOGY AND CIO,BAE SYSTEMS APPLIED INTELLIGENCE LIMITED,470962,9467.5,GB641407169
BEIS,Met Office,2022-10-05,11 SERVICES,TECHNOLOGY AND CIO,BAE SYSTEMS APPLIED INTELLIGENCE LIMITED,470984,6750,GB641407169
BEIS,Met Office,2022-10-25,11 SERVICES,TECHNOLOGY AND CIO,BAE SYSTEMS APPLIED INTELLIGENCE LIMITED,470985,6600,GB641407169
BEIS,Met Office,2022-10-24,11 SERVICES,MARKETS,JCT Ltd,471056,650,714 3761 44
BEIS,Met Office,2022-10-12,11 SERVICES,SERVICES,ESCOTT HUNT LTD,471079,950,815727127
BEIS,Met Office,2022-10-03,11 SERVICES,SCIENCE,ESCOTT HUNT LTD,471080,633.33,815727127
BEIS,Met Office,2022-10-03,11 SERVICES,SERVICES,ESCOTT HUNT LTD,471080,316.67,815727127
BEIS,Met Office,2022-10-03,11 SERVICES,SCIENCE,University Of Exeter,471109,-15051.33,142047795
BEIS,Met Office,2022-10-03,11 SERVICES,SCIENCE,University Of Exeter,471110,-75256.67,142047795
BEIS,Met Office,2022-10-12,11 SERVICES,CHIEF FINANCIAL OFFICER,MITIE SECURITY LTD,471255,2010.24,416706654
BEIS,Met Office,2022-10-13,05 CONSULTANTS,CHIEF FINANCIAL OFFICER,WT CONSULTANCY (SW) LTD,471274,9100,223 4662 25
BEIS,Met Office,2022-10-03,11 SERVICES,MARKETS,University Of Exeter,471425,2000,142047795
BEIS,Met Office,2022-10-12,11 SERVICES,MARKETS,WORLDPAY (UK) LTD,471457,259.43,991280207
BEIS,Met Office,2022-10-12,11 SERVICES,MARKETS,WORLDPAY (UK) LTD,471458,66.17,991280207
BEIS,Met Office,2022-10-12,11 SERVICES,MARKETS,WORLDPAY (UK) LTD,471459,73.32,991280207
BEIS,Met Office,2022-10-28,11 SERVICES,TECHNOLOGY AND CIO,BAE SYSTEMS APPLIED INTELLIGENCE LIMITED,471469,251.28,GB641407169
BEIS,Met Office,2022-10-18,11 SERVICES,SERVICES,Boc Ltd,471478,-114.23,226556555
BEIS,Met Office,2022-10-10,11 SERVICES,PROGRAMMES,University Of Birmingham,471485,64782,729856187
BEIS,Met Office,2022-10-13,06 ACCOMMODATION,CHIEF FINANCIAL OFFICER,GOVERNMENT PROPERTY AGENCY,471528,-3567.47,888 8508 47
BEIS,Met Office,2022-10-13,06 ACCOMMODATION,CHIEF FINANCIAL OFFICER,GOVERNMENT PROPERTY AGENCY,471529,287.07,888 8508 47
BEIS,Met Office,2022-10-27,06 ACCOMMODATION,CHIEF FINANCIAL OFFICER,GOVERNMENT PROPERTY AGENCY,471530,-2015.07,888 8508 47
BEIS,Met Office,2022-10-05,11 SERVICES,PROGRAMMES,University Of Oxford,471560,23981.62,125506730
BEIS,Met Office,2022-10-06,08 SOFTWARE LICENCES,SERVICES,COGNIZANT WORLDWIDE LIMITED,471595,9977.25,123382928
BEIS,Met Office,2022-10-07,06 ACCOMMODATION,CHIEF FINANCIAL OFFICER,SOUTH OXFORDSHIRE DISTRICT COUNCIL,471635,-698.6,-
BEIS,Met Office,2022-10-13,11 SERVICES,CHIEF FINANCIAL OFFICER,BT GLOBAL SERVICES,471665,6204.28,245719348
BEIS,Met Office,2022-10-05,11 SERVICES,PROGRAMMES,KENYA METEOROLOGICAL DEPARTMENT,471674,1397.52,-
BEIS,Met Office,2022-10-10,11 SERVICES,CHIEF FINANCIAL OFFICER,BABBLE CLOUD LIMITED,471675,1230.51,GB206270049
BEIS,Met Office,2022-10-04,11 SERVICES,CHIEF FINANCIAL OFFICER,BT GLOBAL SERVICES,471712,13090.39,245719348
BEIS,Met Office,2022-10-26,11 SERVICES,SCIENCE,CREASED PUDDLE LIMITED,471743,960,340 1645 36
BEIS,Met Office,2022-10-12,11 SERVICES,TECHNOLOGY AND CIO,QA LTD,471745,43820,864455303
BEIS,Met Office,2022-10-12,08 SOFTWARE LICENCES,TECHNOLOGY AND CIO,Ibm United Kingdom Ltd,471746,52438.95,107328000
BEIS,Met Office,2022-10-06,11 SERVICES,TECHNOLOGY AND CIO,BAE SYSTEMS APPLIED INTELLIGENCE LIMITED,471751,11256,GB641407169
BEIS,Met Office,2022-10-05,11 SERVICES,TECHNOLOGY AND CIO,BAE SYSTEMS APPLIED INTELLIGENCE LIMITED,471753,7920,GB641407169
BEIS,Met Office,2022-10-13,11 SERVICES,SERVICES,FRANCIS CLARK LLP,471809,3000,855910212
BEIS,Met Office,2022-10-10,11 SERVICES,CHIEF FINANCIAL OFFICER,BABBLE CLOUD LIMITED,471813,-50,GB206270049
BEIS,Met Office,2022-10-03,08 SOFTWARE LICENCES,CHIEF FINANCIAL OFFICER,CEMAR,471820,850,915042161
BEIS,Met Office,2022-10-04,06 ACCOMMODATION,CHIEF FINANCIAL OFFICER,CBRE MANAGED SERVICES LTD,471826,151200,853936883
BEIS,Met Office,2022-10-03,06 ACCOMMODATION,CHIEF FINANCIAL OFFICER,CBRE MANAGED SERVICES LTD,471827,22628.25,853936883
BEIS,Met Office,2022-10-19,12 INTERNATIONAL,MARKETS,Eumetsat,471829,14005,VE
BEIS,Met Office,2022-10-05,11 SERVICES,MARKETS,WESTPOINT CENTRE (DEVON) LTD,471830,4300,585 6015 25
BEIS,Met Office,2022-10-07,13 MISCELLANEOUS,SERVICES,National Oceanography Centre,471831,7000,GB 338 5487 64
BEIS,Met Office,2022-10-03,11 SERVICES,SCIENCE,University Of Exeter,471833,90308,142047795
BEIS,Met Office,2022-10-03,11 SERVICES,PEOPLE,TP HEALTH LTD,471836,2323,883064608
BEIS,Met Office,2022-10-13,11 SERVICES,TECHNOLOGY AND CIO,BAE SYSTEMS APPLIED INTELLIGENCE LIMITED,471841,5280,GB641407169
BEIS,Met Office,2022-10-12,11 SERVICES,PEOPLE,DAISY DAWES,471842,520,-
BEIS,Met Office,2022-10-05,11 SERVICES,TECHNOLOGY AND CIO,BAE SYSTEMS APPLIED INTELLIGENCE LIMITED,471846,18760,GB641407169
BEIS,Met Office,2022-10-04,11 SERVICES,MARKETS,FCDO,471849,4800.24,888813560
BEIS,Met Office,2022-10-04,11 SERVICES,TECHNOLOGY AND CIO,BAE SYSTEMS APPLIED INTELLIGENCE LIMITED,471879,7650,GB641407169
BEIS,Met Office,2022-10-04,11 SERVICES,TECHNOLOGY AND CIO,BAE SYSTEMS APPLIED INTELLIGENCE LIMITED,471881,9570,GB641407169
BEIS,Met Office,2022-10-12,11 SERVICES,TECHNOLOGY AND CIO,BAE SYSTEMS APPLIED INTELLIGENCE LIMITED,471886,11256,GB641407169
BEIS,Met Office,2022-10-12,12 INTERNATIONAL,MARKETS,ECMWF,471894,734386.13,NOTVATREG
BEIS,Met Office,2022-10-03,11 SERVICES,CHIEF FINANCIAL OFFICER,British Red Cross Society,471895,782,706926227
BEIS,Met Office,2022-10-03,11 SERVICES,CHIEF FINANCIAL OFFICER,METRIKUS LIMITED,471896,2490,321 8772 02
BEIS,Met Office,2022-10-13,06 ACCOMMODATION,CHIEF FINANCIAL OFFICER,GOVERNMENT PROPERTY AGENCY,471902,-287.07,888 8508 47
BEIS,Met Office,2022-10-04,11 SERVICES,PROGRAMMES,University Of Reading,471906,1000,200012659
BEIS,Met Office,2022-10-03,13 MISCELLANEOUS,SCIENCE,University Of Reading,471907,1000,200012659
BEIS,Met Office,2022-10-04,06 ACCOMMODATION,CHIEF FINANCIAL OFFICER,FMS INTERIOR SERVICES LTD,471910,4690.24,922056940
BEIS,Met Office,2022-10-04,11 SERVICES,OFFICE OF THE CEO,BRYERS LLP,471911,2237.77,609635917
BEIS,Met Office,2022-10-03,11 SERVICES,MARKETS,CULVERWELL ASSOCIATES LTD,471912,3000,386 6119 65
BEIS,Met Office,2022-10-04,11 SERVICES,TECHNOLOGY AND CIO,BAE SYSTEMS APPLIED INTELLIGENCE LIMITED,471913,10279,GB641407169
BEIS,Met Office,2022-10-04,11 SERVICES,OFFICE OF THE CEO,BRYERS LLP,471917,582.5,609635917
BEIS,Met Office,2022-10-04,11 SERVICES,OFFICE OF THE CEO,BRYERS LLP,471918,4450.9,609635917
BEIS,Met Office,2022-10-04,11 SERVICES,SCIENCE,University Of Exeter,471919,8362.68,142047795
BEIS,Met Office,2022-10-05,13 MISCELLANEOUS,SERVICES,PETERS & MAY GLOBAL LOGISTICS LTD,471923,445,995183276
BEIS,Met Office,2022-10-03,03 STAFF COSTS T&S,SERVICES,DBS FINANCE RECEIPTS CTS,471925,3201,888805068
BEIS,Met Office,2022-10-03,06 ACCOMMODATION,CHIEF FINANCIAL OFFICER,POWER NI ENERGY LTD,471929,440.48,617518142
BEIS,Met Office,2022-10-04,13 MISCELLANEOUS,SERVICES,PETERS & MAY GLOBAL LOGISTICS LTD,471978,1318.31,995183276
BEIS,Met Office,2022-10-06,11 SERVICES,TECHNOLOGY AND CIO,BAE SYSTEMS APPLIED INTELLIGENCE LIMITED,471979,-11256,GB641407169
BEIS,Met Office,2022-10-06,11 SERVICES,TECHNOLOGY AND CIO,BAE SYSTEMS APPLIED INTELLIGENCE LIMITED,471980,11256,GB641407169
BEIS,Met Office,2022-10-04,11 SERVICES,CHIEF FINANCIAL OFFICER,TELEFONICA O2 UK LIMITED,471981,50.9,778603785
BEIS,Met Office,2022-10-11,FIXTURE & FITTINGS,CHIEF FINANCIAL OFFICER,CBRE MANAGED SERVICES LTD,471982,21000,853936883
BEIS,Met Office,2022-10-05,11 SERVICES,PEOPLE,ACTIVE LEARNING TEAM LTD,471984,1400,-
BEIS,Met Office,2022-10-12,11 SERVICES,TECHNOLOGY AND CIO,QA LTD,471985,30000,864455303
BEIS,Met Office,2022-10-06,11 SERVICES,TECHNOLOGY AND CIO,BAE SYSTEMS APPLIED INTELLIGENCE LIMITED,471986,13117.5,GB641407169
BEIS,Met Office,2022-10-05,06 ACCOMMODATION,CHIEF FINANCIAL OFFICER,OCS Group UK Limited,471988,110148.22,GB238034379
BEIS,Met Office,2022-10-05,06 ACCOMMODATION,CHIEF FINANCIAL OFFICER,OCS Group UK Limited,471988,47189.16,GB238034379
BEIS,Met Office,2022-10-06,11 SERVICES,SERVICES,The James Hutton Institute,471989,4633.2,GB108249520
BEIS,Met Office,2022-10-04,13 MISCELLANEOUS,CHIEF FINANCIAL OFFICER,EDEN SPRINGS UK LTD,471990,703.58,232160411
BEIS,Met Office,2022-10-05,11 SERVICES,PROGRAMMES,Dstl,471992,979.97,888805166
BEIS,Met Office,2022-10-04,11 SERVICES,CHIEF FINANCIAL OFFICER,LEASEDRIVE RENTAL MANAGEMENT LTD,471993,88.9,733546040
BEIS,Met Office,2022-10-07,13 MISCELLANEOUS,CHIEF FINANCIAL OFFICER,CANON UK LTD,471994,26.34,523797128
BEIS,Met Office,2022-10-04,11 SERVICES,CHIEF FINANCIAL OFFICER,OPEN TEXT UK LTD,471995,100,837871308
BEIS,Met Office,2022-10-04,INFORMATION TECHNOLOGY,TECHNOLOGY AND CIO,COMPUTACENTER (UK) LTD,471996,20107.5,490334648
BEIS,Met Office,2022-10-12,STOCK,PROGRAMMES,BUSINESS SUPPORT CENTRE LTD,471997,29,927365208
BEIS,Met Office,2022-10-12,11 SERVICES,PROGRAMMES,OFFICE OF NATIONAL STATISTICS,471998,300,888 846 049
BEIS,Met Office,2022-10-04,11 SERVICES,SERVICES,HITACHI CAPITAL VEHICLE SOLUTIONS,471999,128.9,GB 823 8248 22
BEIS,Met Office,2022-10-04,10 EQUIPMENT MAINTENANCE,SERVICES,Munro Instruments Ltd,472001,397.5,977793930
BEIS,Met Office,2022-10-04,11 SERVICES,SERVICES,Munro Instruments Ltd,472001,29,977793930
BEIS,Met Office,2022-10-04,11 SERVICES,CHIEF FINANCIAL OFFICER,LICENCE BUREAU LTD,472002,99.95,820219467
BEIS,Met Office,2022-10-12,06 ACCOMMODATION,CHIEF FINANCIAL OFFICER,EDF ENERGY CUSTOMERS PLC,472003,160252.41,523041202
BEIS,Met Office,2022-10-12,06 ACCOMMODATION,CHIEF FINANCIAL OFFICER,EDF ENERGY CUSTOMERS PLC,472004,-163199.42,523041202
BEIS,Met Office,2022-10-12,06 ACCOMMODATION,CHIEF FINANCIAL OFFICER,EDF ENERGY CUSTOMERS PLC,472005,176275.82,523041202
BEIS,Met Office,2022-10-12,06 ACCOMMODATION,CHIEF FINANCIAL OFFICER,EDF ENERGY CUSTOMERS PLC,472006,-180605.5,523041202
BEIS,Met Office,2022-10-05,08 SOFTWARE LICENCES,SERVICES,SOUTRON GLOBAL INC,472007,320,863868129
BEIS,Met Office,2022-10-10,06 ACCOMMODATION,CHIEF FINANCIAL OFFICER,EXETER SCIENCE PARK LIMITED,472016,5239.5,163049812
BEIS,Met Office,2022-10-05,11 SERVICES,PROGRAMMES,FUNDACAO ARTHUR BERNARDES - FUNARBE,472017,48063.87,-
BEIS,Met Office,2022-10-06,11 SERVICES,SERVICES,VAISALA LTD,472018,13500,336100011
BEIS,Met Office,2022-10-28,INFORMATION TECHNOLOGY,SERVICES,INMARSAT SOLUTIONS (CANADA) INC,472019,1785.4,766144223
BEIS,Met Office,2022-10-06,11 SERVICES,SERVICES,SKYGUARD LTD T/A PEOPLESAFE,472020,782.01,285808854
BEIS,Met Office,2022-10-12,11 SERVICES,PEOPLE,SWANTECH LOGISTICS LTD,472022,900,769332401
BEIS,Met Office,2022-10-05,08 SOFTWARE LICENCES,TECHNOLOGY AND CIO,Ibm United Kingdom Ltd,472023,6969.8,107328000
BEIS,Met Office,2022-10-05,03 STAFF COSTS T&S,CHIEF FINANCIAL OFFICER,ENTERPRISE RENT A CAR UK LTD,472024,2403.3,215557314
BEIS,Met Office,2022-10-05,03 STAFF COSTS T&S,CHIEF FINANCIAL OFFICER,ENTERPRISE RENT A CAR UK LTD,472025,421.22,215557314
BEIS,Met Office,2022-10-11,03 STAFF COSTS T&S,CHIEF FINANCIAL OFFICER,ALLSTAR BUSINESS SOLUTIONS LTD,472026,4286.81,747880191
BEIS,Met Office,2022-10-10,11 SERVICES,CHIEF FINANCIAL OFFICER,Reuters Ltd,472027,2160,397000555
BEIS,Met Office,2022-10-18,11 SERVICES,SERVICES,Boc Ltd,472028,6737.86,226556555
BEIS,Met Office,2022-10-07,08 SOFTWARE LICENCES,TECHNOLOGY AND CIO,Ibm United Kingdom Ltd,472029,6292.52,107328000
BEIS,Met Office,2022-10-07,07 EQUIPMENT,SERVICES,COMPUTACENTER (UK) LTD,472030,5314.92,490334648
BEIS,Met Office,2022-10-07,11 SERVICES,PROGRAMMES,FLYFORM LTD,472031,18421.31,237333808
BEIS,Met Office,2022-10-07,11 SERVICES,SERVICES,FLYFORM LTD,472032,3980,237333808
BEIS,Met Office,2022-10-05,06 ACCOMMODATION,CHIEF FINANCIAL OFFICER,HIGHLANDS & ISLANDS AIRPORTS LTD.,472035,150.26,945667772
BEIS,Met Office,2022-10-10,03 STAFF COSTS T&S,TECHNOLOGY AND CIO,CHARLIE'S TRAVEL LTD,472036,80,783848277
BEIS,Met Office,2022-10-05,11 SERVICES,TECHNOLOGY AND CIO,SYNTHESYS SYSTEMS ENGINEERS LTD,472037,1857.6,499309492
BEIS,Met Office,2022-10-07,11 SERVICES,MARKETS,Esri (Uk) Ltd,472038,7587.17,787430791
BEIS,Met Office,2022-10-19,06 ACCOMMODATION,CHIEF FINANCIAL OFFICER,JAMES & MARCIA BENJAMIN,472039,744,-
BEIS,Met Office,2022-10-05,06 ACCOMMODATION,CHIEF FINANCIAL OFFICER,JAMES & MARCIA BENJAMIN,472040,520,-
BEIS,Met Office,2022-10-06,03 STAFF COSTS T&S,SERVICES,Trinity House,472043,840,243120414
BEIS,Met Office,2022-10-06,11 SERVICES,SERVICES,Trinity House,472043,120527.62,243120414
BEIS,Met Office,2022-10-07,10 EQUIPMENT MAINTENANCE,SERVICES,QUASAR MICROWAVE TECHNOLOGY LTD,472044,250,209385203
BEIS,Met Office,2022-10-05,07 EQUIPMENT,SERVICES,QUASAR MICROWAVE TECHNOLOGY LTD,472045,16,209385203
BEIS,Met Office,2022-10-05,07 EQUIPMENT,SERVICES,QUASAR MICROWAVE TECHNOLOGY LTD,472045,389,209385203
BEIS,Met Office,2022-10-05,07 EQUIPMENT,SERVICES,QUASAR MICROWAVE TECHNOLOGY LTD,472045,232,209385203
BEIS,Met Office,2022-10-05,07 EQUIPMENT,SERVICES,QUASAR MICROWAVE TECHNOLOGY LTD,472045,116,209385203
BEIS,Met Office,2022-10-05,13 MISCELLANEOUS,CHIEF FINANCIAL OFFICER,EAST ANGLIAN WATER COOLER CO,472046,10.25,676668178
BEIS,Met Office,2022-10-05,13 MISCELLANEOUS,CHIEF FINANCIAL OFFICER,NORSCOTT VENDING SERVICES LTD,472047,85,751402071
BEIS,Met Office,2022-10-05,06 ACCOMMODATION,CHIEF FINANCIAL OFFICER,MORAY COUNCIL,472048,170.82,663755506
BEIS,Met Office,2022-10-12,06 ACCOMMODATION,CHIEF FINANCIAL OFFICER,CARDIFF EXECUTIVE CENTRE LTD,472049,2470,864497378
BEIS,Met Office,2022-10-05,11 SERVICES,MARKETS,WESTPOINT CENTRE (DEVON) LTD,472050,3460,585 6015 25
BEIS,Met Office,2022-10-05,11 SERVICES,MARKETS,WESTPOINT CENTRE (DEVON) LTD,472062,-4300,585 6015 25
BEIS,Met Office,2022-10-11,11 SERVICES,TECHNOLOGY AND CIO,SSE CONTRACTING LTD,472069,10912.87,382894546
BEIS,Met Office,2022-10-05,13 MISCELLANEOUS,CHIEF FINANCIAL OFFICER,CARDIFF EXECUTIVE CENTRE LTD,472070,12.9,864497378
BEIS,Met Office,2022-10-07,11 SERVICES,SERVICES,MADE TECH,472073,181919.64,938565184
BEIS,Met Office,2022-10-12,11 SERVICES,PROGRAMMES,ROWE IT LTD,472074,15750,924964394
BEIS,Met Office,2022-10-06,11 SERVICES,PEOPLE,RIPPLE ROCK LTD,472075,250,GB982 354 301
BEIS,Met Office,2022-10-06,11 SERVICES,PEOPLE,RIPPLE ROCK LTD,472075,6950,GB982 354 301
BEIS,Met Office,2022-10-06,11 SERVICES,PEOPLE,RIPPLE ROCK LTD,472075,155,GB982 354 301
BEIS,Met Office,2022-10-05,11 SERVICES,PEOPLE,THE STRENGTHS PEOPLE LTD,472079,1200,206868488
BEIS,Met Office,2022-10-05,13 MISCELLANEOUS,PEOPLE,BROADBEAN TECHNOLOGY LTD,472080,424.71,GB184088778
BEIS,Met Office,2022-10-05,13 MISCELLANEOUS,PEOPLE,BROADBEAN TECHNOLOGY LTD,472081,1289.5,GB184088778
BEIS,Met Office,2022-10-06,11 SERVICES,TECHNOLOGY AND CIO,WIREFAST LTD,472082,1240.62,749536001
BEIS,Met Office,2022-10-06,11 SERVICES,TECHNOLOGY AND CIO,WIREFAST LTD,472083,95.13,749536001
BEIS,Met Office,2022-10-06,11 SERVICES,CHIEF FINANCIAL OFFICER,TENDER VICTORY,472084,3450,245 1698 90
BEIS,Met Office,2022-10-06,11 SERVICES,PROGRAMMES,BJSS LIMITED,472085,7500,613295452
BEIS,Met Office,2022-10-05,11 SERVICES,PROGRAMMES,ROWE IT LTD,472086,14543,924964394
BEIS,Met Office,2022-10-05,11 SERVICES,PROGRAMMES,ROWE IT LTD,472086,3635.75,924964394
BEIS,Met Office,2022-10-05,11 SERVICES,PROGRAMMES,ROWE IT LTD,472086,45446.87,924964394
BEIS,Met Office,2022-10-05,11 SERVICES,PROGRAMMES,ROWE IT LTD,472086,72715,924964394
BEIS,Met Office,2022-10-05,11 SERVICES,PROGRAMMES,ROWE IT LTD,472086,45446.88,924964394
BEIS,Met Office,2022-10-05,11 SERVICES,PROGRAMMES,ROWE IT LTD,472087,99756.25,924964394
BEIS,Met Office,2022-10-06,05 CONSULTANTS,OFFICE OF THE CEO,THE LEGAL DIRECTOR,472088,285,899 338941
BEIS,Met Office,2022-10-06,11 SERVICES,TECHNOLOGY AND CIO,WIREFAST LTD,472089,2306.03,749536001
BEIS,Met Office,2022-10-06,08 SOFTWARE LICENCES,TECHNOLOGY AND CIO,GOOGLE IRELAND LTD,472090,48.82,6388047V
BEIS,Met Office,2022-10-05,06 ACCOMMODATION,CHIEF FINANCIAL OFFICER,SADDLES & PADDLES EXETER LTD,472091,45,152264528
BEIS,Met Office,2022-10-07,06 ACCOMMODATION,CHIEF FINANCIAL OFFICER,REDACTED PERSONAL DATA,472110,-2700,-
BEIS,Met Office,2022-10-06,11 SERVICES,MARKETS,ULTRA ELECTRONICS LTD NUCLEAR CONTROL SYSTEMS,472137,4926.81,123340754
BEIS,Met Office,2022-10-06,03 STAFF COSTS T&S,CHIEF FINANCIAL OFFICER,ENTERPRISE RENT A CAR UK LTD,472138,77.66,215557314
BEIS,Met Office,2022-10-06,03 STAFF COSTS T&S,CHIEF FINANCIAL OFFICER,ENTERPRISE RENT A CAR UK LTD,472139,77.5,215557314
BEIS,Met Office,2022-10-06,13 MISCELLANEOUS,PEOPLE,EDENRED - CHILDCARE VOUCHERS,472140,11149,649 503 520
BEIS,Met Office,2022-10-06,13 MISCELLANEOUS,PEOPLE,EDENRED I&M (IRS VOUCHERS),472141,24821.7,649 503 520
BEIS,Met Office,2022-10-06,11 SERVICES,SERVICES,SOFTWIRE TECHNOLOGY LIMITED,472142,4200,752 1253 57
BEIS,Met Office,2022-10-07,06 ACCOMMODATION,CHIEF FINANCIAL OFFICER,ANGLIAN WATER BUSINESS NATIONAL LTD,472143,31.73,51406002
BEIS,Met Office,2022-10-07,06 ACCOMMODATION,CHIEF FINANCIAL OFFICER,TENNIE FACILITIES PROPERTY MANAGEMENT LTD,472144,207.15,982055803
BEIS,Met Office,2022-10-07,STOCK,SERVICES,EDMUNDSON ELECTRICAL LTD,472145,0,338246841
BEIS,Met Office,2022-10-07,TRADE CREDITORS,SERVICES,EDMUNDSON ELECTRICAL LTD,472145,8336.8,338246841
BEIS,Met Office,2022-10-26,11 SERVICES,TECHNOLOGY AND CIO,BAE SYSTEMS APPLIED INTELLIGENCE LIMITED,472146,5159.12,GB641407169
BEIS,Met Office,2022-10-14,11 SERVICES,TECHNOLOGY AND CIO,BAE SYSTEMS APPLIED INTELLIGENCE LIMITED,472147,10278.94,GB641407169
BEIS,Met Office,2022-10-11,11 SERVICES,TECHNOLOGY AND CIO,BAE SYSTEMS APPLIED INTELLIGENCE LIMITED,472148,14304.5,GB641407169
BEIS,Met Office,2022-10-11,11 SERVICES,TECHNOLOGY AND CIO,BAE SYSTEMS APPLIED INTELLIGENCE LIMITED,472149,8115,GB641407169
BEIS,Met Office,2022-10-11,03 STAFF COSTS T&S,OFFICE OF THE CEO,FOUNDATION FOR SCIENCE & TECHNOLOGY,472172,3218.25,447089719
BEIS,Met Office,2022-10-17,08 SOFTWARE LICENCES,PROGRAMMES,MAPTILER AG,472173,4295,-
BEIS,Met Office,2022-10-12,11 SERVICES,PROGRAMMES,SCIENCE & TECHNOLOGY FACILITIES COUNCIL,472174,24294,287461957
BEIS,Met Office,2022-10-11,11 SERVICES,MARKETS,SPOKE (INTERACTIVE) LTD,472175,700,840156451
BEIS,Met Office,2022-10-12,08 SOFTWARE LICENCES,SERVICES,COGNIZANT WORLDWIDE LIMITED,472176,9977.25,123382928
BEIS,Met Office,2022-10-10,11 SERVICES,PROGRAMMES,THE BRICK PEOPLE,472177,335,-
BEIS,Met Office,2022-10-11,11 SERVICES,PROGRAMMES,MADE TECH,472195,43139.29,938565184
BEIS,Met Office,2022-10-11,11 SERVICES,SERVICES,MADE TECH,472196,6200,938565184
BEIS,Met Office,2022-10-11,11 SERVICES,SERVICES,MADE TECH,472197,67025,938565184
BEIS,Met Office,2022-10-11,11 SERVICES,SERVICES,MADE TECH,472198,141712.5,938565184
BEIS,Met Office,2022-10-12,06 ACCOMMODATION,CHIEF FINANCIAL OFFICER,TOP RANK CLEANING SERVICES LTD,472200,914,-
BEIS,Met Office,2022-10-12,06 ACCOMMODATION,CHIEF FINANCIAL OFFICER,TOP RANK CLEANING SERVICES LTD,472201,914,-
BEIS,Met Office,2022-10-12,13 MISCELLANEOUS,SERVICES,NORSCOTT VENDING SERVICES LTD,472205,34.75,751402071
BEIS,Met Office,2022-10-12,06 ACCOMMODATION,CHIEF FINANCIAL OFFICER,EDF ENERGY CUSTOMERS PLC,472206,178525.91,523041202
BEIS,Met Office,2022-10-12,06 ACCOMMODATION,CHIEF FINANCIAL OFFICER,EDF ENERGY CUSTOMERS PLC,472207,165136.88,523041202
BEIS,Met Office,2022-10-11,13 MISCELLANEOUS,CHIEF FINANCIAL OFFICER,CANON UK LTD,472210,949.14,523797128
BEIS,Met Office,2022-10-12,11 SERVICES,MARKETS,WORLDPAY LTD,472211,25.85,991280207
BEIS,Met Office,2022-10-12,11 SERVICES,CHIEF FINANCIAL OFFICER,BT plc,472212,8166.77,245719348
BEIS,Met Office,2022-10-12,11 SERVICES,TECHNOLOGY AND CIO,BAE SYSTEMS APPLIED INTELLIGENCE LIMITED,472214,8100,GB641407169
BEIS,Met Office,2022-10-12,11 SERVICES,TECHNOLOGY AND CIO,BAE SYSTEMS APPLIED INTELLIGENCE LIMITED,472215,6396.5,GB641407169
BEIS,Met Office,2022-10-12,11 SERVICES,TECHNOLOGY AND CIO,BAE SYSTEMS APPLIED INTELLIGENCE LIMITED,472216,10549.5,GB641407169
BEIS,Met Office,2022-10-12,11 SERVICES,TECHNOLOGY AND CIO,BAE SYSTEMS APPLIED INTELLIGENCE LIMITED,472217,13200,GB641407169
BEIS,Met Office,2022-10-12,11 SERVICES,TECHNOLOGY AND CIO,BAE SYSTEMS APPLIED INTELLIGENCE LIMITED,472218,14272.5,GB641407169
BEIS,Met Office,2022-10-12,11 SERVICES,PEOPLE,REDACTED PERSONAL DATA,472219,825,143043312
BEIS,Met Office,2022-10-12,11 SERVICES,PEOPLE,REDACTED PERSONAL DATA,472220,4004.5,143043312
BEIS,Met Office,2022-10-12,11 SERVICES,PEOPLE,REDACTED PERSONAL DATA,472221,945,143043312
BEIS,Met Office,2022-10-11,11 SERVICES,SCIENCE,University College London,472222,25000,524371168
BEIS,Met Office,2022-10-13,11 SERVICES,MARKETS,494 CONSULTING,472223,2804.16,332819305
BEIS,Met Office,2022-10-11,CYCLESCHEME,OTHER,EDENRED UK (CYCLESCHEME),472224,10350.11,649 503 520
BEIS,Met Office,2022-10-11,13 MISCELLANEOUS,SCIENCE,University Of Reading,472225,333.33,200012659
BEIS,Met Office,2022-10-10,13 MISCELLANEOUS,CHIEF FINANCIAL OFFICER,NORSCOTT VENDING SERVICES LTD,472226,22.75,751402071
BEIS,Met Office,2022-10-10,03 STAFF COSTS T&S,SERVICES,AIRPORT CAR RENTALS LTD,472227,160,-
BEIS,Met Office,2022-10-10,03 STAFF COSTS T&S,SERVICES,AIRPORT CAR RENTALS LTD,472227,160,-
BEIS,Met Office,2022-10-10,10 EQUIPMENT MAINTENANCE,SERVICES,YOUNG CALIBRATION LIMITED,472228,1650,673900720
BEIS,Met Office,2022-10-10,11 SERVICES,SERVICES,YOUNG CALIBRATION LIMITED,472228,15,673900720
BEIS,Met Office,2022-10-11,11 SERVICES,TECHNOLOGY AND CIO,AKAMAI TECHNOLOGIES LTD,472229,25836.75,745091237
BEIS,Met Office,2022-10-11,11 SERVICES,TECHNOLOGY AND CIO,AKAMAI TECHNOLOGIES LTD,472229,4921.28,745091237
BEIS,Met Office,2022-10-11,11 SERVICES,OFFICE OF THE CEO,OSBORNE CLARKE LLP,472230,14000,GB138187353
BEIS,Met Office,2022-10-12,08 SOFTWARE LICENCES,TECHNOLOGY AND CIO,AKHTER COMPUTERS LTD,472231,95259.94,532262963
BEIS,Met Office,2022-10-11,11 SERVICES,PEOPLE,HEALTH ASSURED LIMITED,472232,1120,927 5242 17
BEIS,Met Office,2022-10-10,11 SERVICES,PEOPLE,RIVER TRAINING AND HR,472233,800,-
BEIS,Met Office,2022-10-12,06 ACCOMMODATION,CHIEF FINANCIAL OFFICER,MITIE SECURITY LTD,472234,1181.25,416706654
BEIS,Met Office,2022-10-10,11 SERVICES,CHIEF FINANCIAL OFFICER,MITIE SECURITY LTD,472235,1350.3,416706654
BEIS,Met Office,2022-10-10,06 ACCOMMODATION,CHIEF FINANCIAL OFFICER,RIVER RIDGE,472236,145.95,176286083
BEIS,Met Office,2022-10-11,04 CONTRACTORS,PEOPLE,MATRIX SCM LIMITED,472237,257516.41,249 5734 68
BEIS,Met Office,2022-10-11,11 SERVICES,SERVICES,Exeter College,472238,3750,125451632
BEIS,Met Office,2022-10-10,06 ACCOMMODATION,CHIEF FINANCIAL OFFICER,Belfast International Airport Ltd,472240,2684.79,617777601
BEIS,Met Office,2022-10-10,11 SERVICES,CHIEF FINANCIAL OFFICER,GIBRALTAR NYNEX COMMUNICATIONS LTD,472241,660,NOVAT
BEIS,Met Office,2022-10-13,11 SERVICES,PEOPLE,CIPHR,472242,7875,242661124
BEIS,Met Office,2022-10-12,07 EQUIPMENT,SERVICES,Trinity House,472243,380.55,243120414
BEIS,Met Office,2022-10-12,11 SERVICES,SERVICES,Trinity House,472243,11830.45,243120414
BEIS,Met Office,2022-10-12,11 SERVICES,SERVICES,Trinity House,472244,1862.1,243120414
BEIS,Met Office,2022-10-10,06 ACCOMMODATION,CHIEF FINANCIAL OFFICER,Belfast International Airport Ltd,472245,24170,617777601
BEIS,Met Office,2022-10-11,11 SERVICES,MARKETS,CACI LTD,472246,91641.55,380609841
BEIS,Met Office,2022-10-11,11 SERVICES,MARKETS,CACI LTD,472247,560,380609841
BEIS,Met Office,2022-10-12,11 SERVICES,PROGRAMMES,REDACTED PERSONAL DATA,472249,25000,N/A
BEIS,Met Office,2022-10-12,11 SERVICES,PEOPLE,RUNTIME COLLECTIVE LTD T/A BRANDWATCH,472250,6174,754750710
BEIS,Met Office,2022-10-12,08 SOFTWARE LICENCES,PEOPLE,CATALYST IT,472251,2580.83,978169262
BEIS,Met Office,2022-10-10,06 ACCOMMODATION,CHIEF FINANCIAL OFFICER,Biffa Waste Services Ltd,472252,260,537911627
BEIS,Met Office,2022-10-12,13 MISCELLANEOUS,MARKETS,AURA,472254,570,N/A
BEIS,Met Office,2022-10-13,11 SERVICES,TECHNOLOGY AND CIO,BAE SYSTEMS APPLIED INTELLIGENCE LIMITED,472255,10819.94,GB641407169
BEIS,Met Office,2022-10-11,13 MISCELLANEOUS,PEOPLE,RESTORE RECORDS MANAGEMENT,472256,13.18,843 863011
BEIS,Met Office,2022-10-26,08 SOFTWARE LICENCES,TECHNOLOGY AND CIO,COMPUTACENTER (UK) LTD,472257,190946.3,490334648
BEIS,Met Office,2022-10-26,08 SOFTWARE LICENCES,TECHNOLOGY AND CIO,COMPUTACENTER (UK) LTD,472257,5500,490334648
BEIS,Met Office,2022-10-10,13 MISCELLANEOUS,CHIEF FINANCIAL OFFICER,CANON UK LTD,472258,574.96,523797128
BEIS,Met Office,2022-10-10,13 MISCELLANEOUS,CHIEF FINANCIAL OFFICER,CANON UK LTD,472259,1959.81,523797128
BEIS,Met Office,2022-10-11,11 SERVICES,SCIENCE,University Of Oxford,472260,25000,125506730
BEIS,Met Office,2022-10-13,11 SERVICES,TECHNOLOGY AND CIO,BAE SYSTEMS APPLIED INTELLIGENCE LIMITED,472261,763.72,GB641407169
BEIS,Met Office,2022-10-11,11 SERVICES,CHIEF FINANCIAL OFFICER,EXPONENTIAL-E,472262,4759.64,GB798572653
BEIS,Met Office,2022-10-11,11 SERVICES,CHIEF FINANCIAL OFFICER,EXPONENTIAL-E,472263,2054.28,GB798572653
BEIS,Met Office,2022-10-19,11 SERVICES,PROGRAMMES,Cgi It Uk Limited,472264,36074,232615194
BEIS,Met Office,2022-10-19,11 SERVICES,PROGRAMMES,Cgi It Uk Limited,472265,26425,232615194
BEIS,Met Office,2022-10-19,11 SERVICES,PROGRAMMES,Cgi It Uk Limited,472266,49702,232615194
BEIS,Met Office,2022-10-12,11 SERVICES,CHIEF FINANCIAL OFFICER,GB GROUP PLC,472267,125.73,539716218
BEIS,Met Office,2022-10-11,11 SERVICES,TECHNOLOGY AND CIO,NORBECK LTD,472268,2714.66,543334559
BEIS,Met Office,2022-10-12,11 SERVICES,CHIEF FINANCIAL OFFICER,GB GROUP PLC,472269,648.21,539716218
BEIS,Met Office,2022-10-12,11 SERVICES,CHIEF FINANCIAL OFFICER,POSTURITE (UK) LTD,472270,50,583565114
BEIS,Met Office,2022-10-10,03 STAFF COSTS T&S,SERVICES,CHARLIE'S TRAVEL LTD,472271,444.73,783848277
BEIS,Met Office,2022-10-10,03 STAFF COSTS T&S,SERVICES,CHARLIE'S TRAVEL LTD,472271,577.89,783848277
BEIS,Met Office,2022-10-11,11 SERVICES,PROGRAMMES,LAFOSSE ASSOCIATES,472272,15750,GB 360026537
BEIS,Met Office,2022-10-12,11 SERVICES,TECHNOLOGY AND CIO,LAFOSSE ASSOCIATES,472273,16087.5,GB 360026537
BEIS,Met Office,2022-10-11,10 EQUIPMENT MAINTENANCE,TECHNOLOGY AND CIO,Hewlett Packard Ltd,472274,300000,314149679
BEIS,Met Office,2022-10-11,10 EQUIPMENT MAINTENANCE,TECHNOLOGY AND CIO,Hewlett Packard Ltd,472274,500000,314149679
BEIS,Met Office,2022-10-11,11 SERVICES,PROGRAMMES,Hewlett Packard Ltd,472274,500000,314149679
BEIS,Met Office,2022-10-11,11 SERVICES,PROGRAMMES,Hewlett Packard Ltd,472274,28875,314149679
BEIS,Met Office,2022-10-12,11 SERVICES,TECHNOLOGY AND CIO,BAE SYSTEMS APPLIED INTELLIGENCE LIMITED,472275,11880,GB641407169
BEIS,Met Office,2022-10-12,11 SERVICES,TECHNOLOGY AND CIO,BAE SYSTEMS APPLIED INTELLIGENCE LIMITED,472276,1420.13,GB641407169
BEIS,Met Office,2022-10-10,03 STAFF COSTS T&S,SERVICES,SOLOMON & COMPANY (ST HELENA) PLC,472277,200,-
BEIS,Met Office,2022-10-12,06 ACCOMMODATION,CHIEF FINANCIAL OFFICER,South West Water Ltd,472284,57.79,236873674
BEIS,Met Office,2022-10-12,06 ACCOMMODATION,CHIEF FINANCIAL OFFICER,Severn Trent Water Ltd,472285,11.06,486985565
BEIS,Met Office,2022-10-11,11 SERVICES,SCIENCE,University Of Bristol,472286,12500,991261800
BEIS,Met Office,2022-10-13,SOFTWARE LICENCES,CHIEF FINANCIAL OFFICER,ADVANCED BUSINESS SOLUTIONS LTD,472287,637.5,927547983
BEIS,Met Office,2022-10-12,11 SERVICES,CHIEF FINANCIAL OFFICER,INFOGRID,472288,13950,293809562
BEIS,Met Office,2022-10-12,11 SERVICES,CHIEF FINANCIAL OFFICER,HSB ENGINEERING INSURANCE SERVICES LTD,472289,5720,652642243
BEIS,Met Office,2022-10-13,11 SERVICES,PEOPLE,RELATIONS GROUP LTD,472290,9000,806455039
BEIS,Met Office,2022-10-11,11 SERVICES,CHIEF FINANCIAL OFFICER,EXPONENTIAL-E,472291,397.09,GB798572653
BEIS,Met Office,2022-10-11,03 STAFF COSTS T&S,CHIEF FINANCIAL OFFICER,ENTERPRISE RENT A CAR UK LTD,472292,1360.22,215557314
BEIS,Met Office,2022-10-13,06 ACCOMMODATION,CHIEF FINANCIAL OFFICER,British Gas Trading Ltd,472297,-345.7,684966762
BEIS,Met Office,2022-10-14,06 ACCOMMODATION,CHIEF FINANCIAL OFFICER,CARDIFF EXECUTIVE CENTRE LTD,472332,2470,864497378
BEIS,Met Office,2022-10-13,06 ACCOMMODATION,CHIEF FINANCIAL OFFICER,BROXTOWE BOROUGH COUNCIL,472333,258.18,118033013
BEIS,Met Office,2022-10-14,06 ACCOMMODATION,CHIEF FINANCIAL OFFICER,SAFESTORE LTD,472334,2815.28,722887607
BEIS,Met Office,2022-10-19,11 SERVICES,CHIEF FINANCIAL OFFICER,SWISSCOM (SCHWEIZ) AG,472335,126.78,-
BEIS,Met Office,2022-10-26,11 SERVICES,CHIEF FINANCIAL OFFICER,SWISSCOM (SCHWEIZ) AG,472336,99.64,-
BEIS,Met Office,2022-10-14,11 SERVICES,CHIEF FINANCIAL OFFICER,MITIE SECURITY LTD,472337,167.52,416706654
BEIS,Met Office,2022-10-14,11 SERVICES,CHIEF FINANCIAL OFFICER,MITIE SECURITY LTD,472338,1340.16,416706654
BEIS,Met Office,2022-10-12,11 SERVICES,CHIEF FINANCIAL OFFICER,GAMMA TELECOM LTD,472365,266.21,823820344
BEIS,Met Office,2022-10-12,11 SERVICES,CHIEF FINANCIAL OFFICER,GAMMA TELECOM LTD,472365,27455.26,823820344
BEIS,Met Office,2022-10-13,06 ACCOMMODATION,MARKETS,SCOTTISH HYDRO-ELECTRIC,472366,173.42,553769603
BEIS,Met Office,2022-10-13,11 SERVICES,CHIEF FINANCIAL OFFICER,ANVIL MOBILE LIMITED,472368,198.15,981686175
BEIS,Met Office,2022-10-12,06 ACCOMMODATION,CHIEF FINANCIAL OFFICER,MOUNT CHARLES GROUP LTD,472369,576.36,517116274
BEIS,Met Office,2022-10-12,06 ACCOMMODATION,CHIEF FINANCIAL OFFICER,XEIAD,472371,1616.35,811321091
BEIS,Met Office,2022-10-17,06 ACCOMMODATION,MARKETS,VAISALA LTD,472372,11700,336100011
BEIS,Met Office,2022-10-12,13 MISCELLANEOUS,CHIEF FINANCIAL OFFICER,CANON UK LTD,472373,11812.72,523797128
BEIS,Met Office,2022-10-12,11 SERVICES,PROGRAMMES,HOGAN LOVELLS INTERNATIONAL LLP,472374,10584.73,GB123371543
BEIS,Met Office,2022-10-13,11 SERVICES,OTHER,HOGAN LOVELLS INTERNATIONAL LLP,472375,5607.23,GB123371543
BEIS,Met Office,2022-10-20,11 SERVICES,MARKETS,BJSS LIMITED,472376,9637.5,613295452
BEIS,Met Office,2022-10-20,11 SERVICES,MARKETS,BJSS LIMITED,472377,13637.5,613295452
BEIS,Met Office,2022-10-20,11 SERVICES,PROGRAMMES,BJSS LIMITED,472378,71468.75,613295452
BEIS,Met Office,2022-10-20,11 SERVICES,PROGRAMMES,BJSS LIMITED,472379,13125,613295452
BEIS,Met Office,2022-10-13,11 SERVICES,TECHNOLOGY AND CIO,BJSS LIMITED,472380,52699,613295452
BEIS,Met Office,2022-10-14,11 SERVICES,TECHNOLOGY AND CIO,BAE SYSTEMS APPLIED INTELLIGENCE LIMITED,472381,9843.75,GB641407169
BEIS,Met Office,2022-10-14,11 SERVICES,TECHNOLOGY AND CIO,BAE SYSTEMS APPLIED INTELLIGENCE LIMITED,472382,13952.75,GB641407169
BEIS,Met Office,2022-10-14,11 SERVICES,TECHNOLOGY AND CIO,BAE SYSTEMS APPLIED INTELLIGENCE LIMITED,472383,15180,GB641407169
BEIS,Met Office,2022-10-14,11 SERVICES,TECHNOLOGY AND CIO,BAE SYSTEMS APPLIED INTELLIGENCE LIMITED,472384,15180,GB641407169
BEIS,Met Office,2022-10-14,11 SERVICES,TECHNOLOGY AND CIO,BAE SYSTEMS APPLIED INTELLIGENCE LIMITED,472386,6270,GB641407169
BEIS,Met Office,2022-10-13,10 EQUIPMENT MAINTENANCE,SERVICES,Munro Instruments Ltd,472387,2310,977793930
BEIS,Met Office,2022-10-13,11 SERVICES,SERVICES,Munro Instruments Ltd,472387,65,977793930
BEIS,Met Office,2022-10-13,11 SERVICES,CHIEF FINANCIAL OFFICER,TELEFONICA O2 UK LIMITED,472388,6346,778603785
BEIS,Met Office,2022-10-12,11 SERVICES,CHIEF FINANCIAL OFFICER,GAMMA BUSINESS COMMUNICATIONS LTD,472389,3446.95,823820344
BEIS,Met Office,2022-10-19,11 SERVICES,CHIEF FINANCIAL OFFICER,ANVIL MOBILE LIMITED,472390,1.59,981686175
BEIS,Met Office,2022-10-19,11 SERVICES,CHIEF FINANCIAL OFFICER,ANVIL MOBILE LIMITED,472390,70,981686175
BEIS,Met Office,2022-10-12,13 MISCELLANEOUS,CHIEF FINANCIAL OFFICER,ARTHUR J. GALLAGHER INSURANCE BROKERS LIMITED,472391,19040,GB484746209
BEIS,Met Office,2022-10-12,13 MISCELLANEOUS,CHIEF FINANCIAL OFFICER,ARTHUR J. GALLAGHER INSURANCE BROKERS LIMITED,472392,101035.69,GB484746209
BEIS,Met Office,2022-10-12,13 MISCELLANEOUS,CHIEF FINANCIAL OFFICER,ARTHUR J. GALLAGHER INSURANCE BROKERS LIMITED,472393,1182.97,GB484746209
BEIS,Met Office,2022-10-12,13 MISCELLANEOUS,CHIEF FINANCIAL OFFICER,ARTHUR J. GALLAGHER INSURANCE BROKERS LIMITED,472394,1419.07,GB484746209
BEIS,Met Office,2022-10-12,13 MISCELLANEOUS,CHIEF FINANCIAL OFFICER,ARTHUR J. GALLAGHER INSURANCE BROKERS LIMITED,472395,186045.81,GB484746209
BEIS,Met Office,2022-10-12,13 MISCELLANEOUS,CHIEF FINANCIAL OFFICER,ARTHUR J. GALLAGHER INSURANCE BROKERS LIMITED,472396,21381.82,GB484746209
BEIS,Met Office,2022-10-12,13 MISCELLANEOUS,CHIEF FINANCIAL OFFICER,ARTHUR J. GALLAGHER INSURANCE BROKERS LIMITED,472397,26698.56,GB484746209
BEIS,Met Office,2022-10-12,13 MISCELLANEOUS,CHIEF FINANCIAL OFFICER,ARTHUR J. GALLAGHER INSURANCE BROKERS LIMITED,472398,45864,GB484746209
BEIS,Met Office,2022-10-12,11 SERVICES,MARKETS,ACCELERATION EMARKETING,472399,3337.19,848940776
BEIS,Met Office,2022-10-12,10 EQUIPMENT MAINTENANCE,TECHNOLOGY AND CIO,Ibm United Kingdom Ltd,472401,68629.77,107328000
BEIS,Met Office,2022-10-12,11 SERVICES,PEOPLE,MOMENTUM INCORPORATED,472402,13320,598958541
BEIS,Met Office,2022-10-13,11 SERVICES,SERVICES,CLOUDREACH EUROPE LIMITED,472403,7300,978187168
BEIS,Met Office,2022-10-13,11 SERVICES,TECHNOLOGY AND CIO,CLOUDREACH EUROPE LIMITED,472404,5150,978187168
BEIS,Met Office,2022-10-12,11 SERVICES,SERVICES,Trinity House,472405,90,243120414
BEIS,Met Office,2022-10-27,06 ACCOMMODATION,CHIEF FINANCIAL OFFICER,GOVERNMENT PROPERTY AGENCY,472407,-1949.8,888 8508 47
BEIS,Met Office,2022-10-14,11 SERVICES,MARKETS,WORLDPAY (UK) LTD,472419,327.32,991280207
BEIS,Met Office,2022-10-13,06 ACCOMMODATION,CHIEF FINANCIAL OFFICER,POWER NI ENERGY LTD,472420,97.61,617518142
BEIS,Met Office,2022-10-14,06 ACCOMMODATION,CHIEF FINANCIAL OFFICER,South West Water Ltd,472421,4010.99,236873674
BEIS,Met Office,2022-10-19,06 ACCOMMODATION,CHIEF FINANCIAL OFFICER,Health & Safety Laboratory,472422,15362.58,888810177
BEIS,Met Office,2022-10-19,06 ACCOMMODATION,CHIEF FINANCIAL OFFICER,Health & Safety Laboratory,472423,18675.31,888810177
BEIS,Met Office,2022-10-13,11 SERVICES,CHIEF FINANCIAL OFFICER,JERSEY TELECOM,472424,1287.21,NOTVATREG
BEIS,Met Office,2022-10-13,06 ACCOMMODATION,CHIEF FINANCIAL OFFICER,CALOR GAS LIMITED,472425,736.3,207610984
BEIS,Met Office,2022-10-13,06 ACCOMMODATION,CHIEF FINANCIAL OFFICER,ABOVE THE REST COMMERCIAL CLEANING LTD,472426,41,166969348
BEIS,Met Office,2022-10-13,06 ACCOMMODATION,CHIEF FINANCIAL OFFICER,ABOVE THE REST COMMERCIAL CLEANING LTD,472427,565,166969348
BEIS,Met Office,2022-10-14,11 SERVICES,CHIEF FINANCIAL OFFICER,CABINET OFFICE - COF LEAD ACCOUNT,472428,33621.67,-
BEIS,Met Office,2022-10-13,06 ACCOMMODATION,CHIEF FINANCIAL OFFICER,SHETLAND CLEANING SERVICES,472429,769.57,430028404
BEIS,Met Office,2022-10-19,11 SERVICES,SCIENCE,INCONF LTD.,472430,1850,349373764
BEIS,Met Office,2022-10-14,11 SERVICES,TECHNOLOGY AND CIO,BAE SYSTEMS APPLIED INTELLIGENCE LIMITED,472432,9262.75,GB641407169
BEIS,Met Office,2022-10-17,11 SERVICES,TECHNOLOGY AND CIO,BAE SYSTEMS APPLIED INTELLIGENCE LIMITED,472433,9900,GB641407169
BEIS,Met Office,2022-10-17,11 SERVICES,TECHNOLOGY AND CIO,BAE SYSTEMS APPLIED INTELLIGENCE LIMITED,472434,10819.94,GB641407169
BEIS,Met Office,2022-10-13,11 SERVICES,CHIEF FINANCIAL OFFICER,SURE SOUTH ATLANTIC LTD,472435,3369.63,NOVATREG
BEIS,Met Office,2022-10-17,11 SERVICES,PEOPLE,MOMENTUM INCORPORATED,472436,6400,598958541
BEIS,Met Office,2022-10-14,11 SERVICES,PEOPLE,TP HEALTH LTD,472437,1191,883064608
BEIS,Met Office,2022-10-13,06 ACCOMMODATION,CHIEF FINANCIAL OFFICER,Scottish Government,472439,12489,888842551
BEIS,Met Office,2022-10-13,11 SERVICES,OFFICE OF THE CEO,BRYERS LLP,472440,105,609635917
BEIS,Met Office,2022-10-14,06 ACCOMMODATION,CHIEF FINANCIAL OFFICER,WEST LANCASHIRE BOROUGH COUNCIL,472484,-726.05,-
BEIS,Met Office,2022-10-13,13 MISCELLANEOUS,SCIENCE,UKRI,472488,1000,GB287461957
BEIS,Met Office,2022-10-14,06 ACCOMMODATION,CHIEF FINANCIAL OFFICER,WEST LANCASHIRE BOROUGH COUNCIL,472494,4114.25,-
BEIS,Met Office,2022-10-14,11 SERVICES,OFFICE OF THE CEO,ST GEORGE'S HOUSE TRUST,472495,1325,727 4336 29
BEIS,Met Office,2022-10-13,03 STAFF COSTS T&S,CHIEF FINANCIAL OFFICER,APPLE CENTRAL TAXIS,472496,316.1,449238720
BEIS,Met Office,2022-10-13,04 CONTRACTORS,PEOPLE,MATRIX SCM LIMITED,472497,202916.83,249 5734 68
BEIS,Met Office,2022-10-13,11 SERVICES,PROGRAMMES,THE STRENGTHS PEOPLE LTD,472499,5125,206868488
BEIS,Met Office,2022-10-13,11 SERVICES,PROGRAMMES,THE STRENGTHS PEOPLE LTD,472500,540,206868488
BEIS,Met Office,2022-10-17,11 SERVICES,CHIEF FINANCIAL OFFICER,SURE SOUTH ATLANTIC LTD,472501,2255.79,-
BEIS,Met Office,2022-10-18,11 SERVICES,CHIEF FINANCIAL OFFICER,SURE SOUTH ATLANTIC LTD,472502,14764.92,-
BEIS,Met Office,2022-10-13,07 EQUIPMENT,TECHNOLOGY AND CIO,COMPUTACENTER (UK) LTD,472503,581.26,490334648
BEIS,Met Office,2022-10-14,11 SERVICES,CHIEF FINANCIAL OFFICER,SURE SOUTH ATLANTIC LTD (ST HELENA),472504,1650,30005
BEIS,Met Office,2022-10-19,11 SERVICES,TECHNOLOGY AND CIO,BAE SYSTEMS APPLIED INTELLIGENCE LIMITED,472506,11902,GB641407169
BEIS,Met Office,2022-10-13,03 STAFF COSTS T&S,CHIEF FINANCIAL OFFICER,APPLE CENTRAL TAXIS,472519,1184,449238720
BEIS,Met Office,2022-10-18,06 ACCOMMODATION,CHIEF FINANCIAL OFFICER,EDF ENERGY CUSTOMERS PLC,472520,469112.24,523041202
BEIS,Met Office,2022-10-17,11 SERVICES,PROGRAMMES,Microsoft Ltd,472521,255658.98,724594615
BEIS,Met Office,2022-10-14,11 SERVICES,MARKETS,UKRI,472522,25143.1,GB287461957
BEIS,Met Office,2022-10-20,11 SERVICES,TECHNOLOGY AND CIO,BAE SYSTEMS APPLIED INTELLIGENCE LIMITED,472523,12442.93,GB641407169
BEIS,Met Office,2022-10-18,11 SERVICES,TECHNOLOGY AND CIO,BAE SYSTEMS APPLIED INTELLIGENCE LIMITED,472524,12194,GB641407169
BEIS,Met Office,2022-10-17,06 ACCOMMODATION,CHIEF FINANCIAL OFFICER,MORAY COUNCIL,472525,85,663755506
BEIS,Met Office,2022-10-19,13 MISCELLANEOUS,SCIENCE,AB MULTIMEDIA LTD,472527,60,849333502
BEIS,Met Office,2022-10-13,11 SERVICES,SCIENCE,WT CONSULTANCY (SW) LTD,472528,1650,223 4662 25
BEIS,Met Office,2022-10-19,06 ACCOMMODATION,CHIEF FINANCIAL OFFICER,REDACTED PERSONAL DATA,472583,-200,NOTVATREGD
BEIS,Met Office,2022-10-17,11 SERVICES,CHIEF FINANCIAL OFFICER,OPEN TEXT UK LTD,472584,100,837871308
BEIS,Met Office,2022-10-17,11 SERVICES,CHIEF FINANCIAL OFFICER,CIPS CORPORATE SERVICES LTD,472585,14500,342648942
,,2022-10-17,11 SERVICES,CHIEF FINANCIAL OFFICER,GIBRALTAR NYNEX COMMUNICATIONS LTD,472586,660,NOVAT
,,2022-10-19,06 ACCOMMODATION,CHIEF FINANCIAL OFFICER,National Oceanography Centre,472587,28897.52,GB 338 5487 64
,,2022-10-19,11 SERVICES,CHIEF FINANCIAL OFFICER,National Oceanography Centre,472587,387.57,GB 338 5487 64
,,2022-10-20,08 SOFTWARE LICENCES,TECHNOLOGY AND CIO,CODILITY LIMITED,472589,8500,GB981191408
,,2022-10-19,07 EQUIPMENT,PEOPLE,COMPUTACENTER (UK) LTD,472591,1708.33,490334648
,,2022-10-19,13 MISCELLANEOUS,SERVICES,DBS FINANCE RECEIPTS CTS,472592,30,888805068
,,2022-10-18,11 SERVICES,MARKETS,ULTRA ELECTRONICS LTD NUCLEAR CONTROL SYSTEMS,472595,241567.46,123340754
,,2022-10-19,13 MISCELLANEOUS,SERVICES,Royal Meteorological Society,472596,88,-
,,2022-10-17,11 SERVICES,SERVICES,TCH LEASING,472597,2459.4,GB172586736
,,2022-10-17,FIXTURE & FITTINGS,CHIEF FINANCIAL OFFICER,FMS INTERIOR SERVICES LTD,472598,61683.75,922056940
,,2022-10-19,11 SERVICES,TECHNOLOGY AND CIO,BAE SYSTEMS APPLIED INTELLIGENCE LIMITED,472599,7032.96,GB641407169
,,2022-10-19,11 SERVICES,TECHNOLOGY AND CIO,BAE SYSTEMS APPLIED INTELLIGENCE LIMITED,472600,3786.98,GB641407169
,,2022-10-18,11 SERVICES,OFFICE OF THE CEO,TREEHOUSE PARTNERS LTD,472601,11075,118 8209 10
,,2022-10-17,11 SERVICES,TECHNOLOGY AND CIO,CLOUDREACH EUROPE LIMITED,472602,3820.45,978187168
,,2022-10-18,11 SERVICES,CHIEF FINANCIAL OFFICER,MAWASEM LTD,472609,0,197694731
,,2022-10-18,11 SERVICES,CHIEF FINANCIAL OFFICER,MAWASEM LTD,472609,239150.4,197694731
,,2022-10-20,06 ACCOMMODATION,CHIEF FINANCIAL OFFICER,BUSINESS SUPPORT CENTRE LTD,472610,39.9,927365208
,,2022-10-19,11 SERVICES,SERVICES,QUEEN'S UNIVERSITY BELFAST,472611,4633,GB 254 7995 11
,,2022-10-17,03 STAFF COSTS T&S,CHIEF FINANCIAL OFFICER,ENTERPRISE RENT A CAR UK LTD,472614,89.05,215557314
,,2022-10-18,07 EQUIPMENT,TECHNOLOGY AND CIO,CDW LTD,472632,1541.76,902194939
,,2022-10-20,08 SOFTWARE LICENCES,CHIEF FINANCIAL OFFICER,CEMAR,472633,850,915042161
,,2022-10-19,11 SERVICES,TECHNOLOGY AND CIO,BAE SYSTEMS APPLIED INTELLIGENCE LIMITED,472634,7260,GB641407169
,,2022-10-20,06 ACCOMMODATION,CHIEF FINANCIAL OFFICER,MORAY COUNCIL,472635,3112.5,663755506
,,2022-10-20,11 SERVICES,SCIENCE,University Of Exeter,472636,12500,142047795
,,2022-10-20,11 SERVICES,SCIENCE,University Of Exeter,472637,12500,142047795
,,2022-10-19,11 SERVICES,PROGRAMMES,University Of Exeter,472638,49980,142047795
,,2022-10-19,11 SERVICES,CHIEF FINANCIAL OFFICER,ANVIL MOBILE LIMITED,472640,9.45,981686175
,,2022-10-19,11 SERVICES,CHIEF FINANCIAL OFFICER,ANVIL MOBILE LIMITED,472640,1680,981686175
,,2022-10-18,10 EQUIPMENT MAINTENANCE,SERVICES,RAISE TELECOMS LTD,472641,19097,166016521
,,2022-10-20,06 ACCOMMODATION,CHIEF FINANCIAL OFFICER,ST MODWEN VENTURES LTD,472642,22.92,975081008
,,2022-10-21,06 ACCOMMODATION,CHIEF FINANCIAL OFFICER,CBRE MANAGED SERVICES LTD,472644,27809.34,853936883
,,2022-10-21,03 STAFF COSTS T&S,TECHNOLOGY AND CIO,CHARLIE'S TRAVEL LTD,472645,62.5,783848277
,,2022-10-19,11 SERVICES,CHIEF FINANCIAL OFFICER,ANVIL MOBILE LIMITED,472646,-1.59,981686175
,,2022-10-19,11 SERVICES,CHIEF FINANCIAL OFFICER,ANVIL MOBILE LIMITED,472646,-70,981686175
,,2022-10-19,13 MISCELLANEOUS,SCIENCE,University Of Exeter,472648,1500,142047795
,,2022-10-21,06 ACCOMMODATION,CHIEF FINANCIAL OFFICER,CBRE MANAGED SERVICES LTD,472649,1,853936883
,,2022-10-21,06 ACCOMMODATION,CHIEF FINANCIAL OFFICER,CBRE MANAGED SERVICES LTD,472649,6839.7,853936883
,,2022-10-19,11 SERVICES,MARKETS,ADOPSTAR,472650,1250,115036848
,,2022-10-21,12 INTERNATIONAL,MARKETS,IDEMS INTERNATIONAL COMMUNITY INTEREST CO,472651,25875.46,-
,,2022-10-24,10 EQUIPMENT MAINTENANCE,SERVICES,OVARRO TS LTD,472661,17825,648280518
,,2022-10-19,13 MISCELLANEOUS,CHIEF FINANCIAL OFFICER,ARTHUR J. GALLAGHER INSURANCE BROKERS LIMITED,472664,1000,GB484746209
,,2022-10-20,TRADE CREDITORS,OTHER,NATWEST COMMERCIAL CARDS DIVISION,472668,167623.04,N/A
,,2022-10-20,07 EQUIPMENT,CHIEF FINANCIAL OFFICER,NATWEST COMMERCIAL CARDS DIVISION,472669,4906.45,N/A
,,2022-10-24,06 ACCOMMODATION,CHIEF FINANCIAL OFFICER,DEVON WILDLIFE ENTERPRISES LTD,472671,430,585473501
,,2022-10-24,STOCK,SERVICES,Campbell Scientific Ltd,472673,0,428453933
,,2022-10-24,TRADE CREDITORS,SERVICES,Campbell Scientific Ltd,472673,801.9,428453933
,,2022-10-24,11 SERVICES,SERVICES,Campbell Scientific Ltd,472673,30,428453933
,,2022-10-19,08 SOFTWARE LICENCES,TECHNOLOGY AND CIO,SPECIALIST COMPUTER CENTRES,472674,368.78,313651680
,,2022-10-21,11 SERVICES,TECHNOLOGY AND CIO,BAE SYSTEMS APPLIED INTELLIGENCE LIMITED,472676,1623,GB641407169
,,2022-10-20,11 SERVICES,PROGRAMMES,GAMMA TELECOM LTD,472707,4549.13,823820344
,,2022-10-20,11 SERVICES,PROGRAMMES,GAMMA TELECOM LTD,472707,54,823820344
,,2022-10-20,11 SERVICES,PROGRAMMES,GAMMA TELECOM LTD,472707,38.14,823820344
,,2022-10-20,13 MISCELLANEOUS,SERVICES,ABOUT PRESENTATION LTD,472708,1258.6,619895287
,,2022-10-20,08 SOFTWARE LICENCES,TECHNOLOGY AND CIO,Ibm United Kingdom Ltd,472710,141.3,107328000
,,2022-10-20,08 SOFTWARE LICENCES,TECHNOLOGY AND CIO,COMPUTACENTER (UK) LTD,472711,7229.8,490334648
,,2022-10-24,STOCK,SERVICES,Environmental Measurements Ltd,472712,0,348513154
,,2022-10-24,STOCK,SERVICES,Environmental Measurements Ltd,472712,0,348513154
,,2022-10-24,TRADE CREDITORS,SERVICES,Environmental Measurements Ltd,472712,1903.5,348513154
,,2022-10-24,TRADE CREDITORS,SERVICES,Environmental Measurements Ltd,472712,837,348513154
,,2022-10-24,11 SERVICES,SERVICES,Environmental Measurements Ltd,472712,30,348513154
,,2022-10-21,03 STAFF COSTS T&S,CHIEF FINANCIAL OFFICER,ALLSTAR BUSINESS SOLUTIONS LTD,472715,3474.6,747880191
,,2022-10-24,06 ACCOMMODATION,CHIEF FINANCIAL OFFICER,TOTAL GAS & POWER LIMITED,472717,623.79,689638949
,,2022-10-25,06 ACCOMMODATION,CHIEF FINANCIAL OFFICER,TOTAL GAS & POWER LIMITED,472718,18186.9,689638949
,,2022-10-24,13 MISCELLANEOUS,SCIENCE,University Of Exeter,472720,1000,142047795
,,2022-10-21,13 MISCELLANEOUS,SERVICES,AUTOMATED DOCUMENT SERVICES LTD,472733,5318.5,105353449
,,2022-10-21,13 MISCELLANEOUS,SERVICES,AUTOMATED DOCUMENT SERVICES LTD,472733,55.6,105353449
,,2022-10-21,13 MISCELLANEOUS,SERVICES,AUTOMATED DOCUMENT SERVICES LTD,472734,400,105353449
,,2022-10-21,08 SOFTWARE LICENCES,TECHNOLOGY AND CIO,PRECISELY SOFTWARE LIMITED,472736,11000,314204216
,,2022-10-28,11 SERVICES,PROGRAMMES,BAE SYSTEMS APPLIED INTELLIGENCE LIMITED,472738,25586,GB641407169
,,2022-10-28,11 SERVICES,PROGRAMMES,BAE SYSTEMS APPLIED INTELLIGENCE LIMITED,472738,21574,GB641407169
,,2022-10-28,11 SERVICES,PROGRAMMES,BAE SYSTEMS APPLIED INTELLIGENCE LIMITED,472738,17735.75,GB641407169
,,2022-10-28,11 SERVICES,PROGRAMMES,BAE SYSTEMS APPLIED INTELLIGENCE LIMITED,472738,16884,GB641407169
,,2022-10-28,11 SERVICES,PROGRAMMES,BAE SYSTEMS APPLIED INTELLIGENCE LIMITED,472738,17445,GB641407169
,,2022-10-28,11 SERVICES,PROGRAMMES,BAE SYSTEMS APPLIED INTELLIGENCE LIMITED,472738,16884,GB641407169
,,2022-10-28,11 SERVICES,PROGRAMMES,BAE SYSTEMS APPLIED INTELLIGENCE LIMITED,472738,21105,GB641407169
,,2022-10-28,11 SERVICES,PROGRAMMES,BAE SYSTEMS APPLIED INTELLIGENCE LIMITED,472738,21574,GB641407169
,,2022-10-28,11 SERVICES,PROGRAMMES,BAE SYSTEMS APPLIED INTELLIGENCE LIMITED,472738,15180,GB641407169
,,2022-10-28,11 SERVICES,PROGRAMMES,BAE SYSTEMS APPLIED INTELLIGENCE LIMITED,472738,26749,GB641407169
,,2022-10-28,11 SERVICES,PROGRAMMES,BAE SYSTEMS APPLIED INTELLIGENCE LIMITED,472739,12443,GB641407169
,,2022-10-28,11 SERVICES,PROGRAMMES,BAE SYSTEMS APPLIED INTELLIGENCE LIMITED,472740,10293.75,GB641407169
,,2022-10-28,11 SERVICES,PROGRAMMES,BAE SYSTEMS APPLIED INTELLIGENCE LIMITED,472741,3300,GB641407169
,,2022-10-28,FIXTURE & FITTINGS,CHIEF FINANCIAL OFFICER,FMS INTERIOR SERVICES LTD,472742,72931.9,922056940
,,2022-10-24,11 SERVICES,PEOPLE,ACTIVE LEARNING TEAM LTD,472743,2800,-
,,2022-10-24,06 ACCOMMODATION,CHIEF FINANCIAL OFFICER,GRS BUILDING SERVICES SOUTH-WEST,472753,1163.77,-
,,2022-10-24,07 EQUIPMENT,TECHNOLOGY AND CIO,SPECIALIST COMPUTER CENTRES,472754,121.26,313651680
,,2022-10-28,11 SERVICES,TECHNOLOGY AND CIO,BAE SYSTEMS APPLIED INTELLIGENCE LIMITED,472755,-251.28,GB641407169
,,2022-10-26,11 SERVICES,SERVICES,APPLIED SATELLITE TECHNOLOGY SYSTEMS LTD,472757,10657.96,720108683
,,2022-10-26,11 SERVICES,SERVICES,APPLIED SATELLITE TECHNOLOGY SYSTEMS LTD,472758,330.03,720108683
,,2022-10-26,12 INTERNATIONAL,MARKETS,APPLIED SATELLITE TECHNOLOGY SYSTEMS LTD,472763,37.08,720108683
,,2022-10-26,11 SERVICES,SERVICES,APPLIED SATELLITE TECHNOLOGY SYSTEMS LTD,472765,778.73,720108683
,,2022-10-26,11 SERVICES,SERVICES,APPLIED SATELLITE TECHNOLOGY SYSTEMS LTD,472766,519.16,720108683
,,2022-10-26,12 INTERNATIONAL,MARKETS,MACITECHSY SOLUTIONS,472768,2858.65,-
,,2022-10-25,03 STAFF COSTS T&S,SERVICES,FALKLAND ISLAND COMPANY LTD,472769,700,N/A
,,2022-10-25,03 STAFF COSTS T&S,SERVICES,FALKLAND ISLAND COMPANY LTD,472770,700,N/A
,,2022-10-25,03 STAFF COSTS T&S,SERVICES,FALKLAND ISLAND COMPANY LTD,472771,700,N/A
,,2022-10-28,INFORMATION TECHNOLOGY,SERVICES,INMARSAT SOLUTIONS (CANADA) INC,472772,1769.72,766144223
,,2022-10-28,INFORMATION TECHNOLOGY,SERVICES,INMARSAT SOLUTIONS (CANADA) INC,472773,42.78,766144223
,,2022-10-25,06 ACCOMMODATION,CHIEF FINANCIAL OFFICER,Biffa Waste Services Ltd,472774,42.91,537911627
,,2022-10-28,11 SERVICES,PROGRAMMES,BAE SYSTEMS APPLIED INTELLIGENCE LIMITED,472776,4690,GB641407169
,,2022-10-28,11 SERVICES,PROGRAMMES,BAE SYSTEMS APPLIED INTELLIGENCE LIMITED,472776,938,GB641407169
,,2022-10-26,11 SERVICES,TECHNOLOGY AND CIO,BAE SYSTEMS APPLIED INTELLIGENCE LIMITED,472777,6520.27,GB641407169
,,2022-10-26,11 SERVICES,TECHNOLOGY AND CIO,BAE SYSTEMS APPLIED INTELLIGENCE LIMITED,472778,42210.97,GB641407169
,,2022-10-26,11 SERVICES,TECHNOLOGY AND CIO,BAE SYSTEMS APPLIED INTELLIGENCE LIMITED,472779,7649.92,GB641407169
,,2022-10-26,11 SERVICES,TECHNOLOGY AND CIO,BAE SYSTEMS APPLIED INTELLIGENCE LIMITED,472780,24344.86,GB641407169
,,2022-10-27,11 SERVICES,MARKETS,MAGPIE CREATIVE COMMUNICATIONS,472781,12500,117332539
,,2022-10-24,06 ACCOMMODATION,CHIEF FINANCIAL OFFICER,CBRE MANAGED SERVICES LTD,472783,117500,853936883
,,2022-10-24,06 ACCOMMODATION,CHIEF FINANCIAL OFFICER,South West Water Ltd,472784,374.83,236873674
,,2022-10-25,11 SERVICES,SERVICES,EAST RIDING OF YORKSHIRE COUNCIL IHA,472785,1687.4,647471123
,,2022-10-27,11 SERVICES,PROGRAMMES,PRISM INFOSEC LTD,472786,3600,GB 879 7957 24
,,2022-10-24,06 ACCOMMODATION,CHIEF FINANCIAL OFFICER,BIDVEST NOONAN UK LTD,472787,238.14,GB847176988
,,2022-10-25,03 STAFF COSTS T&S,SERVICES,CHARLIE'S TRAVEL LTD,472788,276.86,783848277
,,2022-10-26,11 SERVICES,PROGRAMMES,University Of Oxford,472812,69999.64,125506730
,,2022-10-26,11 SERVICES,CHIEF FINANCIAL OFFICER,LICENCE BUREAU LTD,472820,-5096.9,820219467
,,2022-10-26,11 SERVICES,CHIEF FINANCIAL OFFICER,LICENCE BUREAU LTD,472821,5079.9,820219467
,,2022-10-26,03 STAFF COSTS T&S,CHIEF FINANCIAL OFFICER,ENTERPRISE RENT A CAR UK LTD,472822,3456.3,215557314
,,2022-10-26,11 SERVICES,CHIEF FINANCIAL OFFICER,WOMBLE BOND DICKINSON (UK) LLP,472823,19200,GB123393627
,,2022-10-27,11 SERVICES,CHIEF FINANCIAL OFFICER,ELECTRICAL SAFETY CONSULTANTS LTD,472824,3200,-
,,2022-10-26,11 SERVICES,CHIEF FINANCIAL OFFICER,ELECTRICAL SAFETY CONSULTANTS LTD,472825,1800,-
,,2022-10-31,10 EQUIPMENT MAINTENANCE,SERVICES,OVARRO TS LTD,472826,31174,648280518
,,2022-10-27,13 MISCELLANEOUS,SCIENCE,University Of Leeds,472827,1000,613451470
,,2022-10-27,13 MISCELLANEOUS,SCIENCE,University Of Leeds,472828,1000,613451470
,,2022-10-27,13 MISCELLANEOUS,SCIENCE,University Of Leeds,472829,1000,613451470
,,2022-10-27,13 MISCELLANEOUS,SCIENCE,University Of Leeds,472831,1000,613451470
,,2022-10-27,13 MISCELLANEOUS,SCIENCE,University Of Leeds,472832,1000,613451470
,,2022-10-27,13 MISCELLANEOUS,SCIENCE,University Of Leeds,472833,1000,613451470
,,2022-10-31,13 MISCELLANEOUS,SCIENCE,University Of Leeds,472834,1000,613451470
,,2022-10-28,13 MISCELLANEOUS,SCIENCE,University Of Leeds,472835,1000,613451470
,,2022-10-28,11 SERVICES,SERVICES,University Of York,472836,4633.2,647200541
,,2022-10-27,13 MISCELLANEOUS,SCIENCE,University Of Leeds,472838,1000,613451470
,,2022-10-28,11 SERVICES,PROGRAMMES,BAE SYSTEMS APPLIED INTELLIGENCE LIMITED,472840,3147.24,GB641407169
,,2022-10-28,11 SERVICES,SCIENCE,University Of Reading,472841,105075,200012659
,,2022-10-27,PAYE AND VAT,OTHER,HMRC,472849,4816487.56,-
,,2022-10-31,11 SERVICES,CHIEF FINANCIAL OFFICER,GAMMA TELECOM LTD,472850,1415.89,823820344
,,2022-10-31,11 SERVICES,CHIEF FINANCIAL OFFICER,GAMMA TELECOM LTD,472850,27455.26,823820344
,,2022-10-31,11 SERVICES,CHIEF FINANCIAL OFFICER,MITIE SECURITY LTD,472851,3117,416706654
,,2022-10-31,11 SERVICES,CHIEF FINANCIAL OFFICER,MITIE SECURITY LTD,472851,7273.5,416706654
,,2022-10-31,11 SERVICES,CHIEF FINANCIAL OFFICER,MITIE SECURITY LTD,472852,20780.59,416706654
,,2022-10-28,07 EQUIPMENT,TECHNOLOGY AND CIO,COMPUTACENTER (UK) LTD,472853,7969.92,490334648
,,2022-10-27,08 SOFTWARE LICENCES,TECHNOLOGY AND CIO,SPECIALIST COMPUTER CENTRES,472855,20.32,313651680
,,2022-10-31,11 SERVICES,PROGRAMMES,NOC INNOVATIONS LIMITED,472857,249966,-
,,2022-10-27,06 ACCOMMODATION,CHIEF FINANCIAL OFFICER,CBRE MANAGED SERVICES LTD,472858,48419.46,853936883
,,2022-10-27,06 ACCOMMODATION,CHIEF FINANCIAL OFFICER,CBRE MANAGED SERVICES LTD,472859,149176.92,853936883
,,2022-10-27,06 ACCOMMODATION,CHIEF FINANCIAL OFFICER,GREENSTAR CLEANERS LTD,472874,269.97,492376222
,,2022-10-27,06 ACCOMMODATION,CHIEF FINANCIAL OFFICER,OCS Group UK Limited,472876,110148.22,GB238034379
,,2022-10-27,06 ACCOMMODATION,CHIEF FINANCIAL OFFICER,OCS Group UK Limited,472876,43916.3,GB238034379
,,2022-10-27,11 SERVICES,TECHNOLOGY AND CIO,COMPUTACENTER (UK) LTD,472880,120320,490334648
,,2022-10-28,11 SERVICES,TECHNOLOGY AND CIO,BAE SYSTEMS APPLIED INTELLIGENCE LIMITED,472881,21574,GB641407169
,,2022-10-28,11 SERVICES,TECHNOLOGY AND CIO,BAE SYSTEMS APPLIED INTELLIGENCE LIMITED,472882,16884,GB641407169
,,2022-10-28,11 SERVICES,TECHNOLOGY AND CIO,BAE SYSTEMS APPLIED INTELLIGENCE LIMITED,472883,21574,GB641407169
,,2022-10-28,11 SERVICES,TECHNOLOGY AND CIO,BAE SYSTEMS APPLIED INTELLIGENCE LIMITED,472884,21105,GB641407169
,,2022-10-28,11 SERVICES,TECHNOLOGY AND CIO,BAE SYSTEMS APPLIED INTELLIGENCE LIMITED,472885,18642.75,GB641407169
,,2022-10-28,11 SERVICES,TECHNOLOGY AND CIO,BAE SYSTEMS APPLIED INTELLIGENCE LIMITED,472886,4020,GB641407169
,,2022-10-28,11 SERVICES,TECHNOLOGY AND CIO,BAE SYSTEMS APPLIED INTELLIGENCE LIMITED,472887,7650,GB641407169
,,2022-10-28,11 SERVICES,TECHNOLOGY AND CIO,BAE SYSTEMS APPLIED INTELLIGENCE LIMITED,472888,20636,GB641407169
,,2022-10-28,11 SERVICES,TECHNOLOGY AND CIO,BAE SYSTEMS APPLIED INTELLIGENCE LIMITED,472889,8656,GB641407169
,,2022-10-28,11 SERVICES,TECHNOLOGY AND CIO,BAE SYSTEMS APPLIED INTELLIGENCE LIMITED,472891,15180,GB641407169
,,2022-10-28,11 SERVICES,TECHNOLOGY AND CIO,BAE SYSTEMS APPLIED INTELLIGENCE LIMITED,472893,9450,GB641407169
,,2022-10-28,11 SERVICES,TECHNOLOGY AND CIO,BAE SYSTEMS APPLIED INTELLIGENCE LIMITED,472894,2814,GB641407169
,,2022-10-28,11 SERVICES,TECHNOLOGY AND CIO,BAE SYSTEMS APPLIED INTELLIGENCE LIMITED,472895,12443,GB641407169
,,2022-10-28,11 SERVICES,TECHNOLOGY AND CIO,BAE SYSTEMS APPLIED INTELLIGENCE LIMITED,472896,13860,GB641407169
,,2022-10-31,11 SERVICES,CHIEF FINANCIAL OFFICER,POSTURITE (UK) LTD,472898,46.56,583565114
,,2022-10-31,11 SERVICES,CHIEF FINANCIAL OFFICER,POSTURITE (UK) LTD,472899,78.12,583565114
,,2022-10-31,11 SERVICES,CHIEF FINANCIAL OFFICER,WEBEX COMMUNICATIONS UK LTD,472900,209.92,815974302
,,2022-10-31,11 SERVICES,PEOPLE,CIVICA UK LIMITED,472901,7503.5,391171065
,,2022-10-31,STOCK,SERVICES,Campbell Scientific Ltd,472902,0,428453933
,,2022-10-31,TRADE CREDITORS,SERVICES,Campbell Scientific Ltd,472902,2475,428453933
,,2022-10-31,11 SERVICES,SERVICES,Campbell Scientific Ltd,472902,50,428453933
,,2022-10-27,06 ACCOMMODATION,CHIEF FINANCIAL OFFICER,GOVERNMENT PROPERTY AGENCY,472916,-45000,888 8508 47
,,2022-10-31,11 SERVICES,CHIEF FINANCIAL OFFICER,BT plc,472918,876.22,245719348
,,2022-10-28,FIXTURE & FITTINGS,CHIEF FINANCIAL OFFICER,FMS INTERIOR SERVICES LTD,472928,-314,922056940
,,2022-10-31,07 EQUIPMENT,TECHNOLOGY AND CIO,CDW LTD,472938,794.24,902194939
,,2022-10-31,11 SERVICES,TECHNOLOGY AND CIO,BAE SYSTEMS APPLIED INTELLIGENCE LIMITED,472939,12443,GB641407169
,,2022-10-31,13 MISCELLANEOUS,SCIENCE,University Of Exeter,472940,1000,142047795
,,2022-10-31,13 MISCELLANEOUS,SCIENCE,University Of Exeter,472941,1000,142047795
,,2022-10-31,13 MISCELLANEOUS,SCIENCE,University Of Exeter,472942,1000,142047795
,,2022-10-31,11 SERVICES,CHIEF FINANCIAL OFFICER,Morton Fraser LLP,472952,210,269129336
,,2022-10-31,08 SOFTWARE LICENCES,TECHNOLOGY AND CIO,Ibm United Kingdom Ltd,472964,9765,107328000
,,2022-10-31,10 EQUIPMENT MAINTENANCE,TECHNOLOGY AND CIO,COMPUTACENTER (UK) LTD,472969,3202.07,490334648
,,2022-10-31,13 MISCELLANEOUS,CHIEF FINANCIAL OFFICER,BANNER GROUP LIMITED,472972,24,GB391085740
,,2022-10-31,03 STAFF COSTS T&S,CHIEF FINANCIAL OFFICER,ENTERPRISE RENT A CAR UK LTD,472973,412.72,215557314
,,2022-10-31,03 STAFF COSTS T&S,CHIEF FINANCIAL OFFICER,ENTERPRISE RENT A CAR UK LTD,472974,2542.68,215557314
,,2022-10-31,06 ACCOMMODATION,CHIEF FINANCIAL OFFICER,FAIR ISLE ELECTRICITY COMPANY LTD,472975,100.4,774548783
,,2022-10-31,11 SERVICES,PROGRAMMES,PRISM INFOSEC LTD,472979,6300,GB 879 7957 24
,,2022-10-31,10 EQUIPMENT MAINTENANCE,TECHNOLOGY AND CIO,COMPUTACENTER (UK) LTD,472980,3370.6,490334648
,,2022-10-31,10 EQUIPMENT MAINTENANCE,TECHNOLOGY AND CIO,COMPUTACENTER (UK) LTD,472981,44075.07,490334648
